[Event "10th Cesme Open-B 2024"]
[Site "Cesme"]
[Date "2024.06.27"]
[Round "5"]
[White "Korkmaz, Necmettin"]
[Black "Masiya, Mfundo"]
[Result "1-0"]
[ECO "D93"]
[WhiteElo "1999"]
[BlackElo "1971"]
[Annotator "RC"]
[PlyCount "55"]
[EventDate "2024.06.23"]
[EventType "swiss"]
[EventCountry "TUR"]
[SourceTitle "playchess.com"]
[Source "ChessBase"]
[SourceQuality "1"]
[TimeControl "5400+30"]

1. d4 {[%emt 0:04:00]} Nf6 {[%emt 0:01:00]} 2. c4 {[%emt 0:00:30]} g6 {[%emt 0:03:30]} 3. Nc3 {[%emt 0:00:30]} d5 {[%emt 0:00:30]} 4. Nf3 {[%emt 0:00:30]} Bg7 {[%emt 0:00:00]} 5. Bf4 {[%emt 0:00:30]} O-O {[%emt 0:03:00]} 6. Rc1 {[%emt 0:00:30]} c6 {[%emt 0:05:30]} 7. e3 {[%emt 0:01:30]} Be6 {[%emt 0:04:30]} 8. Ng5 {[%emt 0:03:30]} Bf5 {[%emt 0:00:30]} 9. Be2 {[%emt 0:02:30]} h6 {[%emt 0:05:30]} 10. Nf3 {[%emt 0:01:30]} Nbd7 {[%emt 0:05:30]} 11. cxd5 {[%emt 0:20:30]} cxd5 {[%emt 0:03:30]} 12. O-O {[%emt 0:09:30]} Rc8 {[%emt 0:03:30]} 13. Qb3 {[%emt 0:03:30]} Qb6 {[%emt 0:02:30]} 14. Qa3 {[%emt 0:02:30]} Rfe8 {[%emt 0:03:30]} 15. Ne5 {[%emt 0:05:30]} g5 {[%emt 0:02:30]} 16. Bg3 {[%emt 0:00:30]} e6 {[%emt 0:09:30]} 17. Nb5 {[%emt 0:17:30]} Bf8 {[%emt 0:21:30]} 18. Nxd7 {[%emt 0:03:30]} Nxd7 {[%emt 0:07:12]} 19. Qb3 {[%emt 0:05:49]} Qa5 {[%emt 0:08:59]} 20. Bc7 {[%emt 0:05:09]} Nb6 {[%emt 0:02:43]} 21. Rfd1 {[%emt 0:02:00]} Re7 {[%emt 0:05:08]} 22. Bxb6 {[%emt 0:00:59]} Qd2 {[%emt 0:00:55]} 23. Rxd2 {[%emt 0:02:39]} Rxc1+ {[%emt 0:00:30]} 24. Rd1 {[%emt 0:00:00]} Rxd1+ {[%emt 0:00:33]} 25. Qxd1 {[%emt 0:00:12]} axb6 {[%emt 0:00:06]} 26. Bd3 {[%emt 0:00:34]} Re8 {[%emt 0:00:33]} 27. Bxf5 {[%emt 0:01:21]} exf5 {[%emt 0:00:30]} 28. g3 {[%emt 0:00:00]} 1-0

[Event "10th Cesme Open-B 2024"]
[Site "Cesme"]
[Date "2024.06.27"]
[Round "5"]
[White "Atis, Hasan"]
[Black "Hamurcu, Mehmet"]
[Result "1-0"]
[ECO "B45"]
[WhiteElo "1988"]
[BlackElo "1866"]
[Annotator "RC"]
[PlyCount "50"]
[EventDate "2024.06.23"]
[EventType "swiss"]
[EventCountry "TUR"]
[SourceTitle "playchess.com"]
[Source "ChessBase"]
[SourceQuality "1"]
[TimeControl "5400+30"]

1. e4 {[%emt 0:10:00]} c5 {[%emt 0:01:00]} 2. Nf3 {[%emt 0:00:30]} e6 {[%emt 0:00:30]} 3. d4 {[%emt 0:00:30]} cxd4 {[%emt 0:00:30]} 4. Nxd4 {[%emt 0:00:30]} Nf6 {[%emt 0:00:30]} 5. Nc3 {[%emt 0:00:30]} Nc6 {[%emt 0:00:30]} 6. Qd3 {[%emt 0:00:00]} Bb4 {[%emt 0:07:30]} 7. Bd2 {[%emt 0:06:00]} d5 {[%emt 0:05:30]} 8. exd5 {[%emt 0:05:30]} exd5 {[%emt 0:04:30]} 9. O-O-O {[%emt 0:06:30]} O-O {[%emt 0:01:30]} 10. Nb3 {[%emt 0:06:30]} Be6 {[%emt 0:05:30]} 11. a3 {[%emt 0:00:30]} Bxc3 {[%emt 0:02:30]} 12. Bxc3 {[%emt 0:00:30]} Ne4 {[%emt 0:00:00]} 13. Be1 {[%emt 0:00:30]} Qb6 {[%emt 0:09:00]} 14. Qb5 {[%emt 0:03:30]} Qc7 {[%emt 0:11:30]} 15. f3 {[%emt 0:00:30]} a6 {[%emt 0:04:30]} 16. Qe2 {[%emt 0:05:30]} Nd6 {[%emt 0:04:30]} 17. Bg3 {[%emt 0:00:30]} Rac8 {[%emt 0:01:30]} 18. Qf2 {[%emt 0:04:30]} Ne7 {[%emt 0:04:30]} 19. Bd3 {[%emt 0:04:30]} Nef5 {[%emt 0:12:30]} 20. Be5 {[%emt 0:01:30]} d4 {[%emt 0:04:27]} 21. Nxd4 {[%emt 0:03:30]} Qc5 {[%emt 0:03:14]} 22. Rhe1 {[%emt 0:17:30]} Nb5 {[%emt 0:03:20]} 23. Bxb5 {[%emt 0:08:21]} axb5 {[%emt 0:00:20]} 24. g4 {[%emt 0:05:22]} Bb3 {[%emt 0:04:48]} 25. Rd2 {[%emt 0:04:22]} Rfe8 {[%emt 0:06:20]} 1-0

[Event "10th Cesme Open-B 2024"]
[Site "Cesme"]
[Date "2024.06.27"]
[Round "5"]
[White "Rzayev, Askar Aliakbar"]
[Black "Ilgaz, Yusuf Kerem"]
[Result "1-0"]
[ECO "A17"]
[WhiteElo "1967"]
[BlackElo "1966"]
[Annotator "RC"]
[PlyCount "84"]
[EventDate "2024.06.23"]
[EventType "swiss"]
[EventCountry "TUR"]
[SourceTitle "playchess.com"]
[Source "ChessBase"]
[SourceQuality "1"]
[TimeControl "5400+30"]

1. Nf3 {[%emt 0:01:00]} d5 {[%emt 0:02:00]} 2. c4 {[%emt 0:00:30]} e6 {[%emt 0:00:30]} 3. e3 {[%emt 0:00:00]} Nf6 {[%emt 0:00:30]} 4. Nc3 {[%emt 0:00:00]} c5 {[%emt 0:00:30]} 5. cxd5 {[%emt 0:00:30]} exd5 {[%emt 0:00:30]} 6. d4 {[%emt 0:00:30]} c4 {[%emt 0:03:30]} 7. Ne5 {[%emt 0:01:30]} Bd6 {[%emt 0:16:30]} 8. b3 {[%emt 0:05:30]} cxb3 {[%emt 0:09:30]} 9. Qxb3 {[%emt 0:04:30]} O-O {[%emt 0:01:30]} 10. Be2 {[%emt 0:00:30]} Nc6 {[%emt 0:04:30]} 11. f4 {[%emt 0:01:30]} a6 {[%emt 0:09:30]} 12. O-O {[%emt 0:11:30]} Na5 {[%emt 0:02:30]} 13. Qd1 {[%emt 0:00:30]} b5 {[%emt 0:00:30]} 14. Bf3 {[%emt 0:00:30]} Bb7 {[%emt 0:01:30]} 15. Bd2 {[%emt 0:09:30]} Rc8 {[%emt 0:02:30]} 16. Ne2 {[%emt 0:01:30]} Ne4 {[%emt 0:02:30]} 17. Bxa5 {[%emt 0:04:30]} Qxa5 {[%emt 0:00:30]} 18. Bxe4 {[%emt 0:00:30]} dxe4 {[%emt 0:00:30]} 19. f5 {[%emt 0:02:30]} Qa3 {[%emt 0:06:30]} 20. Nf4 {[%emt 0:12:30]} Qxe3+ {[%emt 0:03:30]} 21. Kh1 {[%emt 0:00:00]} f6 {[%emt 0:05:30]} 22. Ng4 {[%emt 0:01:00]} Qc3 {[%emt 0:01:30]} 23. Ne6 {[%emt 0:00:30]} Rf7 {[%emt 0:00:30]} 24. Qe2 {[%emt 0:02:30]} Qc2 {[%emt 0:04:30]} 25. Qe1 {[%emt 0:00:30]} h5 {[%emt 0:07:41]} 26. Ne3 {[%emt 0:00:30]} Qc3 {[%emt 0:00:24]} 27. Qf2 {[%emt 0:01:30]} Bb4 {[%emt 0:04:21]} 28. Rad1 {[%emt 0:01:30]} h4 {[%emt 0:02:39]} 29. Qf4 {[%emt 0:00:30]} Bd6 {[%emt 0:03:39]} 30. Qxd6 {[%emt 0:05:30]} Qxe3 {[%emt 0:00:08]} 31. Nd8 {[%emt 0:00:30]} h3 {[%emt 0:03:18]} 32. Nxf7 {[%emt 0:14:25]} hxg2+ {[%emt 0:00:30]} 33. Kxg2 {[%emt 0:00:00]} Rc2+ {[%emt 0:01:44]} 34. Kh1 {[%emt 0:00:00]} Qe2 {[%emt 0:00:34]} 35. Qb8+ {[%emt 0:05:29]} Bc8 {[%emt 0:00:30]} 36. Qg3 {[%emt 0:00:00]} Kxf7 {[%emt 0:00:06]} 37. Rde1 {[%emt 0:00:39]} Qd2 {[%emt 0:01:18]} 38. Rg1 {[%emt 0:00:19]} Qh6 {[%emt 0:00:30]} 39. Rg2 {[%emt 0:06:58]} Rc4 {[%emt 0:00:33]} 40. Reg1 {[%emt 0:03:48]} Bxf5 {[%emt 0:00:24]} 41. Qd6 {[%emt 0:00:04]} g5 {[%emt 0:00:36]} 42. Rxg5 {[%emt 0:00:31]} Qh7 {[%emt 0:01:05]} 1-0

[Event "10th Cesme Open-B 2024"]
[Site "Cesme"]
[Date "2024.06.27"]
[Round "5"]
[White "Kocakaplan, Emre"]
[Black "Yildiz, Talat"]
[Result "0-1"]
[ECO "E11"]
[WhiteElo "1944"]
[BlackElo "1891"]
[Annotator "RC"]
[PlyCount "88"]
[EventDate "2024.06.23"]
[EventType "swiss"]
[EventCountry "TUR"]
[SourceTitle "playchess.com"]
[Source "ChessBase"]
[SourceQuality "1"]
[TimeControl "5400+30"]

1. d4 {[%emt 0:06:00]} Nf6 {[%emt 0:01:00]} 2. Nf3 {[%emt 0:00:30]} d5 {[%emt 0:00:00]} 3. c4 {[%emt 0:01:30]} e6 {[%emt 0:00:00]} 4. g3 {[%emt 0:00:30]} Bb4+ {[%emt 0:00:30]} 5. Bd2 {[%emt 0:00:30]} Be7 {[%emt 0:00:00]} 6. Bg2 {[%emt 0:01:30]} O-O {[%emt 0:00:00]} 7. Qc2 {[%emt 0:03:30]} c6 {[%emt 0:00:30]} 8. O-O {[%emt 0:00:30]} Nbd7 {[%emt 0:01:30]} 9. Bf4 {[%emt 0:06:30]} b6 {[%emt 0:00:30]} 10. Ne5 {[%emt 0:14:30]} Nxe5 {[%emt 0:00:30]} 11. Bxe5 {[%emt 0:05:30]} Ba6 {[%emt 0:07:30]} 12. Nd2 {[%emt 0:04:30]} Ng4 {[%emt 0:08:30]} 13. Bf4 {[%emt 0:10:30]} Qd7 {[%emt 0:07:30]} 14. h3 {[%emt 0:03:30]} Nf6 {[%emt 0:01:30]} 15. Nf3 {[%emt 0:00:30]} Rfc8 {[%emt 0:04:30]} 16. Ne5 {[%emt 0:06:30]} Qe8 {[%emt 0:00:30]} 17. Qb3 {[%emt 0:12:30]} Nh5 {[%emt 0:27:30]} 18. cxd5 {[%emt 0:02:48]} Nxf4 {[%emt 0:01:30]} 19. gxf4 {[%emt 0:00:39]} cxd5 {[%emt 0:00:30]} 20. f5 {[%emt 0:03:29]} Qb5 {[%emt 0:08:30]} 21. Qg3 {[%emt 0:04:03]} exf5 {[%emt 0:09:04]} 22. a4 {[%emt 0:01:38]} Qa5 {[%emt 0:01:16]} 23. Qf3 {[%emt 0:01:39]} Bb7 {[%emt 0:04:36]} 24. Qxf5 {[%emt 0:00:51]} Bf6 {[%emt 0:02:01]} 25. Ra3 {[%emt 0:01:23]} Re8 {[%emt 0:06:40]} 26. Rg3 {[%emt 0:02:36]} Bxe5 {[%emt 0:00:37]} 27. dxe5 {[%emt 0:00:18]} Qxa4 {[%emt 0:01:47]} 28. Rc1 {[%emt 0:01:42]} Rac8 {[%emt 0:01:37]} 29. Rxc8 {[%emt 0:00:42]} Bxc8 {[%emt 0:00:22]} 30. Qf6 {[%emt 0:00:45]} g6 {[%emt 0:00:34]} 31. Ra3 {[%emt 0:03:26]} Qd1+ {[%emt 0:00:26]} 32. Kh2 {[%emt 0:00:19]} Qxe2 {[%emt 0:01:22]} 33. Rxa7 {[%emt 0:00:50]} Be6 {[%emt 0:01:52]} 34. b4 {[%emt 0:00:46]} d4 {[%emt 0:00:28]} 35. f4 {[%emt 0:00:30]} Bd5 {[%emt 0:00:57]} 36. Qg5 {[%emt 0:00:22]} h6 {[%emt 0:00:43]} 37. Qg3 {[%emt 0:00:18]} d3 {[%emt 0:00:32]} 38. Rd7 {[%emt 0:00:26]} d2 {[%emt 0:01:17]} 39. Rxd5 {[%emt 0:00:51]} d1=Q {[%emt 0:00:00]} 40. Qh4 {[%emt 0:00:22]} Qed2 {[%emt 0:00:39]} 41. b5 {[%emt 0:00:45]} g5 {[%emt 0:01:03]} 42. fxg5 {[%emt 0:00:20]} Qxg5 {[%emt 0:00:00]} 43. Qxg5+ {[%emt 0:01:04]} hxg5 {[%emt 0:00:23]} 44. Kg3 {[%emt 0:00:01]} Rxe5 {[%emt 0:00:00]} 0-1

[Event "10th Cesme Open-B 2024"]
[Site "Cesme"]
[Date "2024.06.27"]
[Round "5"]
[White "Tezcan, Alper"]
[Black "Selvi, Kaan"]
[Result "1-0"]
[ECO "B34"]
[WhiteElo "1936"]
[BlackElo "1871"]
[Annotator "RC"]
[PlyCount "99"]
[EventDate "2024.06.23"]
[EventType "swiss"]
[EventCountry "TUR"]
[SourceTitle "playchess.com"]
[Source "ChessBase"]
[SourceQuality "1"]
[TimeControl "5400+30"]

1. e4 {[%emt 0:03:00]} c5 {[%emt 0:02:00]} 2. Nf3 {[%emt 0:00:00]} Nc6 {[%emt 0:00:00]} 3. d4 {[%emt 0:00:00]} cxd4 {[%emt 0:01:00]} 4. Nxd4 {[%emt 0:00:30]} Nf6 {[%emt 0:00:30]} 5. Nc3 {[%emt 0:00:30]} g6 {[%emt 0:00:00]} 6. Nxc6 {[%emt 0:01:30]} dxc6 {[%emt 0:00:00]} 7. Qxd8+ {[%emt 0:11:30]} Kxd8 {[%emt 0:00:30]} 8. Bf4 {[%emt 0:02:30]} Be6 {[%emt 0:03:30]} 9. O-O-O+ {[%emt 0:04:30]} Ke8 {[%emt 0:03:30]} 10. f3 {[%emt 0:01:30]} h5 {[%emt 0:09:30]} 11. Kb1 {[%emt 0:03:30]} Bh6 {[%emt 0:04:30]} 12. Be5 {[%emt 0:04:30]} Kf8 {[%emt 0:06:30]} 13. Na4 {[%emt 0:04:30]} Be3 {[%emt 0:01:30]} 14. b3 {[%emt 0:04:30]} b5 {[%emt 0:03:30]} 15. Nb2 {[%emt 0:00:30]} Kg7 {[%emt 0:05:30]} 16. Be2 {[%emt 0:14:30]} Rhd8 {[%emt 0:07:30]} 17. Nd3 {[%emt 0:04:30]} Bd4 {[%emt 0:11:30]} 18. Bxd4 {[%emt 0:06:30]} Rxd4 {[%emt 0:00:30]} 19. c3 {[%emt 0:01:30]} Rdd8 {[%emt 0:01:30]} 20. h4 {[%emt 0:08:30]} a5 {[%emt 0:07:30]} 21. Nc5 {[%emt 0:02:30]} Nd7 {[%emt 0:02:30]} 22. Nxe6+ {[%emt 0:03:48]} fxe6 {[%emt 0:00:30]} 23. Rd2 {[%emt 0:01:07]} Nc5 {[%emt 0:00:30]} 24. Rhd1 {[%emt 0:00:40]} Rxd2 {[%emt 0:06:30]} 25. Rxd2 {[%emt 0:02:13]} Kf6 {[%emt 0:00:30]} 26. b4 {[%emt 0:00:30]} Na4 {[%emt 0:00:30]} 27. Kc2 {[%emt 0:00:22]} Nb6 {[%emt 0:00:30]} 28. Kb3 {[%emt 0:01:39]} a4+ {[%emt 0:03:14]} 29. Kc2 {[%emt 0:00:34]} g5 {[%emt 0:04:02]} 30. hxg5+ {[%emt 0:04:06]} Kxg5 {[%emt 0:00:39]} 31. c4 {[%emt 0:07:34]} bxc4 {[%emt 0:01:50]} 32. Kc3 {[%emt 0:00:00]} Kf4 {[%emt 0:03:12]} 33. Bxc4 {[%emt 0:00:06]} Ke5 {[%emt 0:00:04]} 34. g3 {[%emt 0:02:25]} Rf8 {[%emt 0:01:35]} 35. f4+ {[%emt 0:00:32]} Kxe4 {[%emt 0:01:02]} 36. Bxe6 {[%emt 0:00:02]} Nd5+ {[%emt 0:01:16]} 37. Bxd5+ {[%emt 0:00:30]} cxd5 {[%emt 0:00:30]} 38. Rd4+ {[%emt 0:00:00]} Kf3 {[%emt 0:01:07]} 39. Rxd5 {[%emt 0:00:00]} Kxg3 {[%emt 0:00:30]} 40. Rxh5 {[%emt 0:00:00]} Kxf4 {[%emt 0:02:58]} 41. b5 {[%emt 0:00:24]} e5 {[%emt 0:03:50]} 42. Rh4+ {[%emt 0:03:08]} Kf3 {[%emt 0:01:12]} 43. Rxa4 {[%emt 0:00:30]} e4 {[%emt 0:00:30]} 44. Ra7 {[%emt 0:00:00]} e3 {[%emt 0:00:23]} 45. Re7 {[%emt 0:00:00]} e2 {[%emt 0:00:00]} 46. a4 {[%emt 0:00:49]} Kf2 {[%emt 0:02:18]} 47. b6 {[%emt 0:01:28]} Rf3+ {[%emt 0:01:33]} 48. Kd2 {[%emt 0:00:30]} Rb3 {[%emt 0:00:30]} 49. Rxe2+ {[%emt 0:00:30]} Kf3 {[%emt 0:00:00]} 50. Re6 {[%emt 0:00:04]} 1-0

[Event "10th Cesme Open-B 2024"]
[Site "Cesme"]
[Date "2024.06.27"]
[Round "5"]
[White "Uzdemir, Ali Poyraz"]
[Black "Akyuz, Kerem Arhan"]
[Result "1-0"]
[ECO "B15"]
[WhiteElo "1936"]
[BlackElo "1789"]
[Annotator "RC"]
[PlyCount "71"]
[EventDate "2024.06.23"]
[EventType "swiss"]
[EventCountry "TUR"]
[SourceTitle "playchess.com"]
[Source "ChessBase"]
[SourceQuality "1"]
[TimeControl "5400+30"]

1. e4 {[%emt 0:01:00]} c6 {[%emt 0:02:00]} 2. d4 {[%emt 0:00:00]} d5 {[%emt 0:00:30]} 3. Nc3 {[%emt 0:00:00]} dxe4 {[%emt 0:00:30]} 4. Nxe4 {[%emt 0:00:00]} Nf6 {[%emt 0:00:30]} 5. Nxf6+ {[%emt 0:00:00]} exf6 {[%emt 0:00:30]} 6. c3 {[%emt 0:00:30]} Bd6 {[%emt 0:00:00]} 7. Bd3 {[%emt 0:00:00]} O-O {[%emt 0:01:00]} 8. Qc2 {[%emt 0:00:00]} Re8+ {[%emt 0:00:30]} 9. Ne2 {[%emt 0:00:00]} h5 {[%emt 0:00:30]} 10. O-O {[%emt 0:00:00]} Nd7 {[%emt 0:00:30]} 11. Bf4 {[%emt 0:02:30]} Nf8 {[%emt 0:02:30]} 12. Bxd6 {[%emt 0:11:30]} Qxd6 {[%emt 0:00:30]} 13. Rad1 {[%emt 0:00:30]} Be6 {[%emt 0:06:30]} 14. c4 {[%emt 0:00:30]} Rad8 {[%emt 0:05:30]} 15. Nc3 {[%emt 0:00:30]} Qxd4 {[%emt 0:10:30]} 16. Bh7+ {[%emt 0:00:30]} Nxh7 {[%emt 0:00:30]} 17. Rxd4 {[%emt 0:00:30]} Rxd4 {[%emt 0:00:30]} 18. b3 {[%emt 0:00:00]} Red8 {[%emt 0:05:30]} 19. Rd1 {[%emt 0:02:00]} Ng5 {[%emt 0:08:30]} 20. Rxd4 {[%emt 0:16:30]} Rxd4 {[%emt 0:00:30]} 21. f3 {[%emt 0:00:30]} g6 {[%emt 0:10:30]} 22. Ne2 {[%emt 0:04:30]} Rd7 {[%emt 0:06:30]} 23. Qc3 {[%emt 0:05:30]} Kg7 {[%emt 0:03:30]} 24. h4 {[%emt 0:04:30]} Nh7 {[%emt 0:00:30]} 25. Ng3 {[%emt 0:01:30]} c5 {[%emt 0:10:30]} 26. Ne4 {[%emt 0:04:30]} b6 {[%emt 0:01:30]} 27. Qe3 {[%emt 0:00:30]} Rd4 {[%emt 0:01:30]} 28. Nc3 {[%emt 0:15:30]} Nf8 {[%emt 0:03:26]} 29. Nb5 {[%emt 0:00:30]} Rd1+ {[%emt 0:00:41]} 30. Kh2 {[%emt 0:00:30]} a6 {[%emt 0:02:03]} 31. Nc7 {[%emt 0:02:30]} Rd7 {[%emt 0:01:25]} 32. Ne8+ {[%emt 0:00:30]} Kh7 {[%emt 0:01:21]} 33. Nxf6+ {[%emt 0:00:30]} Kg7 {[%emt 0:00:15]} 34. Qe5 {[%emt 0:00:30]} Kh6 {[%emt 0:04:45]} 35. Qg5+ {[%emt 0:00:30]} Kg7 {[%emt 0:00:12]} 36. Ne8+ {[%emt 0:00:30]} 1-0

[Event "10th Cesme Open-B 2024"]
[Site "Cesme"]
[Date "2024.06.27"]
[Round "5"]
[White "Yasin, Hur"]
[Black "Sanan, Demirhan"]
[Result "0-1"]
[ECO "B75"]
[WhiteElo "1924"]
[BlackElo "1740"]
[Annotator "RC"]
[PlyCount "92"]
[EventDate "2024.06.23"]
[EventType "swiss"]
[EventCountry "TUR"]
[SourceTitle "playchess.com"]
[Source "ChessBase"]
[SourceQuality "1"]
[TimeControl "5400+30"]

1. e4 {[%emt 0:02:00]} c5 {[%emt 0:01:00]} 2. Nf3 {[%emt 0:00:30]} d6 {[%emt 0:00:00]} 3. d4 {[%emt 0:00:30]} cxd4 {[%emt 0:00:00]} 4. Nxd4 {[%emt 0:00:00]} Nf6 {[%emt 0:00:30]} 5. Nc3 {[%emt 0:00:00]} g6 {[%emt 0:00:00]} 6. Be3 {[%emt 0:00:30]} Bg7 {[%emt 0:00:00]} 7. f3 {[%emt 0:00:30]} a6 {[%emt 0:00:00]} 8. Bc4 {[%emt 0:00:30]} b5 {[%emt 0:00:00]} 9. Bb3 {[%emt 0:00:30]} Bb7 {[%emt 0:00:30]} 10. Nd5 {[%emt 0:01:30]} Nbd7 {[%emt 0:00:30]} 11. c3 {[%emt 0:03:30]} O-O {[%emt 0:00:30]} 12. Qd2 {[%emt 0:00:30]} Nc5 {[%emt 0:00:30]} 13. Nxf6+ {[%emt 0:00:30]} Bxf6 {[%emt 0:00:30]} 14. Bd5 {[%emt 0:00:30]} Qd7 {[%emt 0:00:30]} 15. Ne2 {[%emt 0:09:30]} Rad8 {[%emt 0:02:30]} 16. Rd1 {[%emt 0:00:30]} e6 {[%emt 0:00:30]} 17. Bxb7 {[%emt 0:01:30]} Qxb7 {[%emt 0:00:30]} 18. h4 {[%emt 0:01:30]} h5 {[%emt 0:01:30]} 19. Bg5 {[%emt 0:00:30]} Qe7 {[%emt 0:00:00]} 20. Qf4 {[%emt 0:01:30]} Bxg5 {[%emt 0:01:00]} 21. hxg5 {[%emt 0:00:00]} e5 {[%emt 0:00:30]} 22. Qh4 {[%emt 0:02:00]} Ne6 {[%emt 0:06:30]} 23. g4 {[%emt 0:01:30]} Nxg5 {[%emt 0:00:30]} 24. Rd3 {[%emt 0:09:30]} d5 {[%emt 0:04:30]} 25. exd5 {[%emt 0:04:30]} Rxd5 {[%emt 0:00:30]} 26. Re3 {[%emt 0:00:30]} Qf6 {[%emt 0:00:30]} 27. gxh5 {[%emt 0:02:30]} Rfd8 {[%emt 0:13:30]} 28. hxg6 {[%emt 0:12:30]} fxg6 {[%emt 0:00:30]} 29. Kf2 {[%emt 0:01:30]} Rd3 {[%emt 0:00:30]} 30. Ng1 {[%emt 0:20:30]} R8d7 {[%emt 0:15:30]} 31. Rxd3 {[%emt 0:13:33]} Rxd3 {[%emt 0:00:30]} 32. Ke2 {[%emt 0:00:00]} Rd7 {[%emt 0:00:30]} 33. Qg4 {[%emt 0:00:47]} Qd8 {[%emt 0:00:00]} 34. Kf2 {[%emt 0:02:31]} Rf7 {[%emt 0:03:00]} 35. Kg3 {[%emt 0:00:50]} Rf4 {[%emt 0:02:30]} 36. Qxf4 {[%emt 0:07:26]} exf4+ {[%emt 0:00:30]} 37. Kxf4 {[%emt 0:00:28]} Ne6+ {[%emt 0:00:00]} 38. Ke5 {[%emt 0:00:58]} Qe7 {[%emt 0:00:00]} 39. Ke4 {[%emt 0:00:31]} Nc5+ {[%emt 0:00:30]} 40. Kd5 {[%emt 0:01:16]} Nd3 {[%emt 0:00:30]} 41. Nh3 {[%emt 0:00:23]} Qb7+ {[%emt 0:00:30]} 42. Kd4 {[%emt 0:00:47]} Qxf3 {[%emt 0:00:00]} 43. Rh2 {[%emt 0:00:00]} Nf4 {[%emt 0:00:00]} 44. Ng5 {[%emt 0:00:42]} Qg3 {[%emt 0:01:30]} 45. Rh7 {[%emt 0:00:48]} Qxg5 {[%emt 0:00:30]} 46. Rb7 {[%emt 0:00:00]} Qd5+ {[%emt 0:00:30]} 0-1

[Event "10th Cesme Open-B 2024"]
[Site "Cesme"]
[Date "2024.06.27"]
[Round "5"]
[White "Hasirci, Ozgur Deniz"]
[Black "Turgut, Hakan"]
[Result "1/2-1/2"]
[ECO "B28"]
[WhiteElo "1903"]
[BlackElo "1979"]
[Annotator "RC"]
[PlyCount "103"]
[EventDate "2024.06.23"]
[EventType "swiss"]
[EventCountry "TUR"]
[SourceTitle "playchess.com"]
[Source "ChessBase"]
[SourceQuality "1"]
[TimeControl "5400+30"]

1. e4 {[%emt 0:01:00]} c5 {[%emt 0:03:00]} 2. Nf3 {[%emt 0:00:30]} a6 {[%emt 0:00:30]} 3. c4 {[%emt 0:00:00]} Nc6 {[%emt 0:00:30]} 4. d4 {[%emt 0:00:00]} cxd4 {[%emt 0:00:30]} 5. Nxd4 {[%emt 0:00:00]} e5 {[%emt 0:00:30]} 6. Nf5 {[%emt 0:00:00]} d5 {[%emt 0:00:30]} 7. cxd5 {[%emt 0:01:30]} Bxf5 {[%emt 0:00:30]} 8. exf5 {[%emt 0:00:30]} Nd4 {[%emt 0:00:00]} 9. Bd3 {[%emt 0:00:00]} Nf6 {[%emt 0:03:00]} 10. O-O {[%emt 0:00:00]} Qxd5 {[%emt 0:17:30]} 11. Nc3 {[%emt 0:00:30]} Qd7 {[%emt 0:01:30]} 12. Re1 {[%emt 0:04:30]} Nc6 {[%emt 0:02:30]} 13. Bf4 {[%emt 0:11:30]} Bd6 {[%emt 0:01:30]} 14. Bg5 {[%emt 0:04:30]} Be7 {[%emt 0:03:30]} 15. Qf3 {[%emt 0:02:30]} O-O-O {[%emt 0:08:30]} 16. Bxf6 {[%emt 0:07:30]} gxf6 {[%emt 0:02:30]} 17. Be4 {[%emt 0:05:30]} Nd4 {[%emt 0:03:30]} 18. Qd3 {[%emt 0:01:30]} Kb8 {[%emt 0:01:30]} 19. Nd5 {[%emt 0:00:30]} Nxf5 {[%emt 0:07:30]} 20. Rac1 {[%emt 0:01:30]} Ng7 {[%emt 0:00:30]} 21. Qb3 {[%emt 0:02:30]} Ne6 {[%emt 0:17:30]} 22. Nc7 {[%emt 0:00:30]} b5 {[%emt 0:00:00]} 23. Nxa6+ {[%emt 0:01:30]} Ka7 {[%emt 0:00:00]} 24. Red1 {[%emt 0:01:30]} Nd4 {[%emt 0:01:30]} 25. Rxd4 {[%emt 0:06:30]} Qxd4 {[%emt 0:01:30]} 26. Nc7 {[%emt 0:00:00]} Qb4 {[%emt 0:03:30]} 27. Qxf7 {[%emt 0:05:00]} Rd7 {[%emt 0:03:55]} 28. Qe6 {[%emt 0:01:30]} Rd6 {[%emt 0:00:54]} 29. Nxb5+ {[%emt 0:00:30]} Qxb5 {[%emt 0:00:44]} 30. Qxe7+ {[%emt 0:00:30]} Rd7 {[%emt 0:00:11]} 31. Rc7+ {[%emt 0:00:30]} Rxc7 {[%emt 0:00:30]} 32. Qxc7+ {[%emt 0:00:30]} Ka6 {[%emt 0:00:30]} 33. a4 {[%emt 0:00:00]} Qb3 {[%emt 0:03:39]} 34. Bc2 {[%emt 0:00:00]} Qd5 {[%emt 0:00:34]} 35. a5 {[%emt 0:00:00]} Qb7 {[%emt 0:01:19]} 36. Bd3+ {[%emt 0:00:00]} Ka7 {[%emt 0:00:00]} 37. Qc5+ {[%emt 0:00:30]} Kb8 {[%emt 0:01:40]} 38. Qd6+ {[%emt 0:37:43]} Qc7 {[%emt 0:00:10]} 39. Qxf6 {[%emt 0:00:00]} Rd8 {[%emt 0:00:16]} 40. Qf5 {[%emt 0:00:33]} Qxa5 {[%emt 0:02:37]} 41. Qxh7 {[%emt 0:01:08]} Qa1+ {[%emt 0:04:51]} 42. Bf1 {[%emt 0:00:11]} Qxb2 {[%emt 0:00:00]} 43. Qe4 {[%emt 0:03:19]} Rd1 {[%emt 0:01:00]} 44. g3 {[%emt 0:02:55]} Qb5 {[%emt 0:00:52]} 45. Qg2 {[%emt 0:00:03]} e4 {[%emt 0:00:29]} 46. h4 {[%emt 0:00:30]} Qe5 {[%emt 0:02:19]} 47. h5 {[%emt 0:01:15]} e3 {[%emt 0:01:18]} 48. fxe3 {[%emt 0:00:35]} Qxh5 {[%emt 0:00:39]} 49. Qb2+ {[%emt 0:00:28]} Kc7 {[%emt 0:00:18]} 50. Qg7+ {[%emt 0:00:52]} Kd6 {[%emt 0:01:24]} 51. Qf6+ {[%emt 0:00:40]} Kd7 {[%emt 0:00:24]} 52. Qg7+ {[%emt 0:00:26]} 1/2-1/2